bitfinex/quotes_ETHUSD_20251124
["timestamp","ask_amount","ask_price","bid_price","bid_amount"]
[1763995967240,0.1932,2816.3,2815.5,0.09817286]
[1763995967422,0.002,2817.2,2815.9,0.09817286]
[1763995967630,0.002,2817.2,2815.6,1.13109811]
[1763995967823,0.002,2817.2,2816.1,0.09817286]
[1763995968442,0.002,2817.2,2816.0,0.405504]
[1763995968631,0.002,2817.2,2816.5,0.09817286]
[1763995968826,0.002,2817.2,2815.7,0.4791]
[1763995969097,0.4876,2817.2,2816.1,0.09817286]
[1763995969398,0.4876,2817.2,2816.4,0.09817286]
[1763995969676,0.002,2817.2,2816.7,0.09817286]
[1763995970028,0.4794,2817.1,2816.4,0.09817286]
[1763995970235,0.002,2817.2,2816.4,0.09817286]
[1763995970451,0.002,2817.2,2816.5,0.23687286]
[1763995970665,0.002,2817.2,2816.3,0.247]
[1763995970867,0.002,2817.2,2816.9,0.09817286]
[1763995971069,0.002,2817.2,2816.5,0.09817286]
[1763995971450,0.4814,2817.2,2816.5,0.09817286]
[1763995971654,0.002,2817.2,2816.5,0.09817286]
[1763995971939,0.002,2817.2,2815.8,7.87958332]
[1763995971940,0.4794,2817.1,2815.6,0.09817286]
[1763995972150,0.405504,2817.0,2815.8,0.09817286]
[1763995972355,0.405504,2817.0,2815.5,0.09817286]
[1763995972582,0.405504,2816.8,2814.6,0.09817286]
[1763995972742,0.405504,2816.6,2814.6,0.09817286]
[1763995972940,0.405504,2816.6,2814.3,0.09817286]
[1763995973253,0.248,2816.7,2813.6,0.8941]
[1763995973254,1.38949411,2816.3,2813.6,0.8941]
[1763995973456,10.005815,2815.8,2813.2,0.1813]
[1763995973672,7.63258332,2815.4,2812.6,0.179]
[1763995973856,0.72559411,2815.0,2812.9,0.09817286]
[1763995974241,0.72559411,2815.0,2812.3,0.09817286]
[1763995974242,3.03465311,2814.8,2812.3,0.09817286]
[1763995974587,0.6498,2814.9,2812.3,0.09817286]
[1763995974588,0.72559411,2814.4,2812.3,0.09817286]
[1763995974787,0.4794,2814.8,2812.7,0.09817286]
[1763995974988,0.247,2814.3,2813.1,0.09817286]
[1763995975146,0.247,2814.3,2812.9,0.09817286]
[1763995975351,0.4794,2814.2,2813.2,0.09817286]
[1763995977046,0.1704,2814.9,2813.5,0.09817286]
[1763995977255,0.4794,2814.2,2813.3,0.09817286]
[1763995977791,0.1704,2814.9,2813.3,0.09817286]
[1763995977792,0.247,2814.7,2813.7,0.09817286]
[1763995977959,0.4794,2814.8,2813.7,0.09817286]
[1763995978309,0.4794,2814.8,2813.1,0.09817286]
[1763995978507,0.4794,2814.8,2813.4,0.09817286]
[1763995978712,0.652504,2814.7,2812.9,0.1813]
[1763995978898,0.652504,2814.7,2813.1,0.09817286]
[1763995979070,0.405504,2814.5,2813.1,0.09817286]
[1763995979275,0.405504,2814.5,2812.8,0.09817286]
[1763995979524,0.4968,2814.6,2811.9,0.4283]
[1763995979525,0.405504,2814.3,2812.2,0.09817286]
[1763995979720,0.405504,2814.1,2812.2,0.09817286]
[1763995980117,0.405504,2813.9,2812.6,0.09817286]
[1763995980423,0.405504,2813.9,2811.5,0.72559411]
[1763995980424,0.1976,2812.0,2810.9,0.09817286]
[1763995980572,0.4968,2811.9,2810.7,0.09817286]
[1763995980771,0.4968,2811.9,2810.5,0.4864]
[1763995980972,0.4968,2812.4,2811.3,0.09817286]
[1763995981214,0.4968,2813.3,2811.9,0.09817286]
[1763995981369,0.1976,2813.4,2811.9,0.09817286]
[1763995981370,0.1976,2813.4,2812.5,0.09817286]
[1763995981569,0.4968,2813.3,2812.0,0.76967286]
[1763995981804,0.1976,2813.4,2812.1,0.405504]
[1763995982006,0.4968,2814.3,2812.7,3.513826]
[1763995982209,0.1704,2815.2,2813.3,0.09817286]
[1763995982474,7.63258332,2815.7,2814.2,0.09817286]
[1763995982475,0.1976,2815.6,2814.2,0.09817286]
[1763995982832,0.1845,2816.3,2815.1,0.09817286]
[1763995982833,0.6813,2816.3,2815.1,0.09817286]
[1763995983026,0.6813,2816.3,2814.8,0.4864]
[1763995983174,0.247,2817.1,2814.9,8.03808732]
[1763995983380,0.1976,2816.6,2815.7,0.09817286]
[1763995983598,0.1976,2816.6,2815.1,0.09817286]
[1763995983916,0.1976,2816.6,2814.4,0.4864]
[1763995983917,0.4968,2816.5,2814.4,0.4864]
[1763995984118,0.247,2816.4,2814.7,1.13109811]
[1763995984304,0.1976,2816.6,2814.8,0.90162041]
[1763995984502,0.4968,2816.5,2815.2,0.09817286]
[1763995984693,0.4968,2816.5,2815.5,0.09817286]
[1763995985119,0.4968,2816.5,2815.2,0.09817286]
[1763995985334,0.4968,2816.5,2815.6,0.09817286]
[1763995985517,0.4968,2816.5,2815.2,0.09817286]
[1763995985684,0.4968,2816.5,2815.5,0.09817286]
[1763995985911,0.4968,2816.5,2814.9,0.09817286]
[1763995986306,0.4968,2816.5,2815.2,0.09817286]
[1763995986655,0.4968,2816.5,2814.5,3.55292975]
[1763995986656,0.652504,2816.4,2814.5,0.09817286]
[1763995986836,0.405504,2816.4,2814.6,0.09817286]
[1763995987175,0.4968,2816.3,2814.6,0.50367686]
[1763995987330,7.63258332,2817.3,2814.6,0.50367686]
[1763995987331,0.1976,2817.0,2815.4,0.405504]
[1763995987510,0.1976,2817.0,2815.4,0.247]
[1763995987704,0.4968,2816.9,2815.5,0.78795833]
[1763995987910,0.4968,2816.9,2815.6,0.09817286]
[1763995988229,0.405504,2816.8,2815.2,0.09817286]
[1763995988437,14.714044,2816.8,2812.2,3.55591816]
[1763995988616,7.63258332,2816.4,2813.2,12.6151177]
[1763995988943,2.2648844,2816.7,2813.2,12.6151177]
[1763995988944,0.405504,2816.6,2814.1,3.07656]
[1763995989144,0.248,2816.5,2814.9,0.09817286]
[1763995989317,0.248,2816.5,2815.4,0.09817286]
[1763995989318,0.4968,2816.5,2815.4,0.09817286]
[1763995989667,0.002,2817.2,2816.5,0.405504]
[1763995989809,0.002,2817.2,2816.9,0.09817286]
[1763995990150,0.002,2817.2,2816.1,0.6715]
[1763995990353,0.002,2817.2,2816.6,0.09817286]
[1763995990558,0.002,2817.2,2816.9,0.09817286]
[1763995990706,0.002,2817.2,2816.2,0.891904]
[1763995990707,0.002,2817.2,2817.1,0.09817286]
[1763995991121,0.002,2817.2,2816.9,0.09817286]
[1763995991334,0.002,2817.2,2817.1,0.09817286]
[1763995991649,0.002,2817.2,2816.5,6.25979036]
[1763995991650,0.002,2817.2,2816.3,0.27843267]
[1763995991851,0.002,2817.2,2816.1,0.1851]
[1763995992024,0.002,2817.2,2816.2,0.09817286]
[1763995992025,0.4988,2817.2,2816.2,0.09817286]
[1763995992210,0.4988,2817.2,2815.7,1.21199411]
[1763995992211,0.4988,2817.2,2815.8,0.405504]
[1763995992524,0.4988,2817.2,2816.7,0.09817286]
[1763995992525,0.002,2817.2,2816.7,0.09817286]
[1763995992708,0.002,2817.2,2817.1,0.1813]
[1763995992909,0.002,2817.2,2817.1,7.67036133]
[1763995993287,0.002,2817.2,2817.1,2.6640071]
[1763995993563,0.002,2817.2,2817.1,1.49146697]
[1763995994054,0.002,2817.2,2817.1,0.90689411]
[1763995994205,0.002,2817.2,2817.1,1.00506697]
[1763995994410,0.002,2817.2,2817.1,1.89697097]
[1763995994853,0.002,2817.2,2817.1,0.72559411]
[1763995995059,0.002,2817.2,2817.1,1.61749811]
[1763995995358,0.002,2817.2,2817.1,1.71567097]
[1763995995652,0.002,2817.2,2817.1,0.82376697]
[1763995995856,0.002,2817.2,2817.1,0.09817286]
[1763995996214,0.002,2817.2,2817.1,13.00695133]
[1763995996649,0.002,2817.2,2817.1,7.97546133]
[1763995996847,0.002,2817.5,2817.4,0.09817286]
[1763995997052,0.0012,2817.5,2817.4,4.61994807]
[1763995997210,0.0012,2817.5,2817.4,5.65940107]
[1763995997410,0.0012,2817.5,2817.4,2.54384807]
[1763995997611,0.0012,2817.5,2817.4,1.96367097]
[1763995997811,0.0012,2817.5,2817.4,4.69014297]
[1763995998072,0.0012,2817.5,2817.4,7.96003473]
[1763995998230,0.002,2817.8,2817.7,36.76346722]
[1763995998418,0.12,2818.1,2818.0,0.09817286]
[1763995998619,0.12,2818.3,2818.1,0.09817286]
[1763995998868,0.12,2818.3,2817.4,3.79735081]
[1763995998869,0.12,2818.3,2817.5,0.72559411]
[1763995999027,0.12,2818.3,2817.6,0.09817286]
[1763995999367,0.12,2818.3,2817.2,0.7344]
[1763995999368,0.4968,2818.2,2817.5,0.09817286]
[1763995999525,0.12,2818.3,2817.2,0.248]
[1763995999717,0.12,2818.3,2817.5,0.09817286]
[1763996000053,0.12,2818.3,2817.3,1.18269411]
[1763996000259,0.12,2818.3,2817.2,0.248]
[1763996000415,0.6173,2818.3,2817.4,0.09817286]
[1763996001044,0.6173,2818.3,2816.8,0.4571]
[1763996001244,0.6173,2818.3,2816.7,0.248]
[1763996001512,0.6173,2818.3,2817.6,0.09817286]
[1763996001929,0.6173,2818.3,2817.2,0.09817286]
[1763996002128,0.12,2818.3,2817.4,0.09817286]
[1763996002328,0.4973,2818.2,2817.0,0.09817286]
[1763996002716,0.12,2818.3,2817.5,0.09817286]
[1763996002952,0.122,2818.3,2817.3,0.405504]
[1763996003160,0.122,2818.3,2817.4,0.3828436]
[1763996003372,0.122,2818.3,2817.2,0.248]
[1763996003373,0.122,2818.3,2817.5,0.09817286]
[1763996003545,0.122,2818.3,2817.9,0.09817286]
[1763996004059,0.122,2818.3,2818.2,0.09817286]
[1763996004223,0.122,2818.3,2817.9,0.09817286]
[1763996004554,0.122,2818.3,2818.2,0.09817286]
[1763996004727,0.122,2818.3,2817.9,0.09817286]
[1763996005054,0.122,2818.3,2818.2,0.09817286]
[1763996005240,0.122,2818.3,2817.4,0.82376697]
[1763996005551,0.122,2818.3,2817.7,0.72559411]
[1763996005852,0.122,2818.3,2818.2,0.09817286]
[1763996006158,0.122,2818.3,2817.3,6.25979036]
[1763996006159,0.4973,2818.2,2816.5,10.45241042]
[1763996006356,0.4973,2818.2,2816.5,0.1851]
[1763996006518,0.4973,2818.2,2816.3,0.248]
[1763996006519,0.405504,2818.1,2816.3,0.248]
[1763996006714,0.405504,2818.1,2816.6,0.09817286]
[1763996006930,0.122,2818.3,2816.7,0.09817286]
[1763996006931,0.4973,2818.0,2816.7,0.09817286]
[1763996007748,0.4973,2818.0,2816.3,0.248]
[1763996007749,0.4973,2818.0,2816.9,0.09817286]
[1763996007956,0.4973,2818.0,2816.3,0.4571]
[1763996008166,0.405504,2817.9,2816.2,0.4448]
[1763996008315,0.405504,2817.9,2816.5,0.09817286]
[1763996008537,0.4973,2817.8,2816.5,0.09817286]
[1763996009251,0.4973,2817.8,2816.9,0.09817286]
[1763996009454,0.4973,2817.8,2816.7,0.09817286]
[1763996010347,0.4973,2817.8,2816.9,0.09817286]
[1763996010542,0.6193,2818.3,2817.2,0.09817286]
[1763996010746,0.6193,2818.3,2816.6,0.72559411]
[1763996010943,0.6193,2818.3,2816.2,0.4438]
[1763996011255,0.405504,2818.2,2816.7,0.09817286]
[1763996011483,0.405504,2818.0,2816.7,0.09817286]
[1763996011653,0.405504,2818.0,2816.2,0.4438]
[1763996011654,0.405504,2818.0,2816.2,0.34517286]
[1763996011985,0.405504,2817.8,2816.4,0.09817286]
[1763996012370,0.4973,2817.8,2816.7,0.09817286]
[1763996012555,0.4973,2817.8,2816.4,0.72559411]
[1763996012556,0.4973,2817.8,2816.4,0.405504]
[1763996012758,0.4973,2817.8,2816.4,0.49289677]
[1763996012989,0.1545,2816.5,2815.8,0.09817286]
[1763996013161,0.1545,2816.5,2814.9,0.001]
[1763996013506,0.1545,2816.5,2815.1,0.09817286]
[1763996013507,0.4973,2816.4,2815.1,0.09817286]
[1763996013654,0.4973,2816.4,2815.2,0.09817286]
[1763996013860,0.4973,2816.4,2815.6,0.09817286]
[1763996014097,0.4973,2816.4,2815.1,0.4571]
[1763996014244,0.4973,2816.4,2815.1,1.11224628]
[1763996014440,0.4973,2816.4,2815.2,0.09817286]
[1763996014647,0.405504,2816.3,2814.9,0.001]
[1763996014971,0.247,2816.2,2814.9,0.001]
[1763996015138,0.405504,2816.1,2814.9,0.001]
[1763996015642,0.405504,2815.9,2814.9,0.001]
[1763996015848,0.1963,2815.0,2814.9,0.001]
[1763996016281,0.6936,2815.0,2814.9,0.001]
[1763996016583,1.099104,2815.0,2814.6,0.001]
[1763996016740,0.4973,2814.9,2814.6,0.001]
[1763996016940,0.1963,2815.0,2814.6,0.001]
[1763996017494,0.4973,2815.9,2814.6,0.001]
[1763996017646,0.4973,2815.4,2814.6,0.001]
[1763996017847,0.2745,2816.5,2814.6,0.001]
[1763996018043,0.4973,2816.4,2814.6,0.001]
[1763996018286,0.247,2816.3,2814.6,0.001]
[1763996018492,0.405504,2816.3,2814.7,0.09817286]
[1763996018792,0.4973,2816.2,2815.3,0.09817286]
[1763996018946,0.4973,2816.2,2815.0,0.72559411]
[1763996019276,0.2745,2816.5,2815.6,0.09817286]
[1763996019786,0.2745,2816.5,2815.3,0.09817286]
[1763996019787,0.4973,2816.4,2815.3,0.09817286]
[1763996020158,0.2745,2816.5,2815.6,0.09817286]
[1763996020361,0.2745,2816.5,2815.5,0.405504]
[1763996020564,0.12,2816.5,2816.0,0.09817286]
[1763996020762,0.12,2816.8,2816.0,0.09817286]
[1763996020966,0.1545,2817.1,2816.3,5.045438]
[1763996020967,0.12,2817.1,2816.3,5.045438]
[1763996021150,0.1963,2817.5,2816.4,0.57710321]
[1763996021349,0.1963,2817.5,2816.3,0.09817286]
[1763996021771,0.1963,2817.5,2815.7,0.4571]
[1763996022085,0.1963,2817.5,2816.0,0.09817286]
[1763996022446,0.1963,2817.5,2815.9,0.72559411]
[1763996022644,0.1963,2817.5,2816.4,0.09817286]
[1763996022870,0.6936,2817.5,2816.5,0.09817286]
[1763996023387,0.6936,2817.5,2816.1,3.999247]
[1763996023388,0.6936,2817.5,2816.1,0.405504]
[1763996023558,0.6936,2817.5,2816.1,0.862604]
[1763996023887,0.6936,2817.5,2815.9,0.72559411]
[1763996023888,0.4973,2817.4,2815.9,0.72559411]
[1763996024068,0.4973,2817.4,2816.3,0.09817286]
[1763996024273,0.4973,2817.4,2816.6,0.09817286]
[1763996024593,0.4973,2817.4,2816.1,0.72559411]
[1763996024749,0.4473,2817.4,2816.3,2.023993]
[1763996024949,0.4473,2817.4,2816.6,0.09817286]
[1763996025386,0.1963,2817.5,2816.5,0.29497286]
[1763996025686,0.1963,2817.5,2816.2,0.246]
[1763996025897,0.1963,2817.5,2816.7,0.09817286]
[1763996026046,0.1963,2817.5,2816.6,0.09817286]
[1763996026251,0.1963,2817.5,2816.4,0.72559411]
[1763996026579,0.12,2817.7,2816.7,5.042194]
[1763996026762,0.12,2817.7,2817.4,0.09817286]
[1763996026966,0.4973,2818.1,2816.8,0.57677881]
[1763996027272,0.4973,2818.1,2816.3,7.50701435]
[1763996027480,0.4973,2818.1,2817.1,0.09817286]
[1763996027681,0.4973,2818.1,2816.8,0.09817286]
[1763996027882,0.4973,2818.1,2817.1,0.09817286]
[1763996028110,0.3163,2818.2,2817.4,0.09817286]
[1763996028275,0.8136,2818.2,2817.4,0.09817286]
[1763996028478,0.8136,2818.2,2817.1,0.09817286]
[1763996028809,0.8136,2818.2,2817.4,0.09817286]
[1763996029506,0.8136,2818.2,2816.8,7.1002556]
[1763996029507,0.4902,2818.1,2816.8,0.09817286]
[1763996029809,0.6102,2818.1,2816.5,0.72559411]
[1763996029976,0.6102,2818.1,2816.6,0.9722998]
[1763996030162,0.6102,2818.1,2817.2,0.09817286]
[1763996030364,0.12,2818.1,2817.2,0.09817286]
[1763996030588,0.12,2818.1,2817.6,0.09817286]
[1763996030774,0.1958,2818.1,2816.8,0.4728]
[1763996030990,0.4902,2818.0,2816.7,0.09817286]
[1763996031570,0.4902,2818.0,2817.1,0.09817286]
[1763996031771,0.4902,2818.0,2816.7,0.4728]
[1763996031772,0.1958,2818.1,2817.3,0.09817286]
[1763996032196,0.1958,2818.1,2817.5,0.09817286]
[1763996032405,0.122,2818.3,2817.2,0.72559411]
[1763996032608,0.122,2818.3,2817.9,0.09817286]
[1763996032763,0.122,2818.3,2817.4,0.4728]
[1763996032764,0.122,2818.3,2818.2,0.09817286]
[1763996034372,0.002,2818.3,2818.2,8.56973406]
[1763996034669,0.002,2818.3,2818.2,5.25043517]
[1763996034875,0.002,2818.3,2818.2,1.72827145]
[1763996035079,0.002,2818.3,2818.2,2.19597145]
[1763996035279,0.002,2818.3,2818.2,1.29146697]
[1763996035476,0.002,2818.3,2818.2,0.72559411]
[1763996035778,0.002,2818.3,2818.2,0.82376697]
[1763996037378,0.002,2818.3,2818.2,8.94936217]
[1763996037730,0.002,2818.3,2818.2,3.87249797]
[1763996038015,0.002,2818.3,2818.2,8.52857883]
[1763996038217,0.002,2818.3,2818.2,16.27417983]
[1763996038529,0.002,2818.3,2818.2,9.34457083]
[1763996039019,0.11609583,2818.4,2818.3,21.97636011]
[1763996039199,0.002,2818.6,2818.3,25.96295658]
[1763996039375,0.002,2818.6,2818.5,30.50367686]
[1763996039576,0.002,2818.6,2818.5,30.73670197]
[1763996039921,0.12,2820.1,2818.8,12.68481397]
[1763996040078,0.12,2820.1,2818.8,18.36570813]
[1763996040283,0.1965,2819.9,2818.8,5.84800278]
[1763996040477,0.12,2820.1,2818.8,5.84800278]
[1763996040478,0.12,2820.1,2818.8,13.80646004]
[1763996040893,0.12,2820.1,2818.8,10.61996413]
[1763996041095,0.1965,2819.9,2818.8,3.71770797]
[1763996041295,0.1965,2819.9,2818.8,1.94297097]
[1763996041696,0.5979,2820.1,2818.8,10.24328802]
[1763996041916,0.1965,2819.9,2818.8,6.61461553]
[1763996042217,0.4779,2819.8,2818.8,1.06976697]
[1763996042434,0.6744,2819.9,2818.8,1.53746697]
[1763996042639,0.6744,2819.9,2818.8,1.94297097]
[1763996042802,0.12,2820.1,2818.8,8.13406902]
[1763996042997,0.1965,2819.9,2818.8,4.68463297]
[1763996043197,0.1965,2819.9,2818.8,1.53823027]
[1763996043422,0.1965,2819.9,2818.8,1.53746697]
[1763996043637,0.12,2820.1,2818.8,7.64395388]
[1763996043899,0.1965,2819.9,2818.8,3.61069097]
[1763996044100,0.4779,2819.8,2818.8,1.94297097]
[1763996044335,0.1965,2819.9,2818.8,5.49057988]
[1763996044501,0.0012,2818.9,2818.8,9.96582897]
[1763996044700,0.0012,2818.9,2818.8,6.39442197]
[1763996044905,0.0012,2818.9,2818.8,1.06976697]
[1763996045225,0.0012,2818.9,2818.8,3.73197797]
[1763996045427,0.0012,2818.9,2818.8,5.49057988]
[1763996045627,0.0012,2818.9,2818.8,10.23630088]
[1763996045810,0.0012,2818.9,2818.8,16.49555804]
[1763996046011,0.0012,2818.9,2818.8,11.89645658]
[1763996046225,0.0012,2818.9,2818.8,16.2766456]
[1763996046528,0.12,2820.1,2818.8,16.2766456]
[1763996046529,0.12,2820.1,2820.0,0.09817286]
[1763996046727,0.7942,2820.6,2819.9,0.09817286]
[1763996046927,0.7942,2820.6,2820.2,0.09817286]
[1763996047130,0.7942,2820.6,2819.7,0.246]
[1763996047131,0.4779,2820.5,2819.7,0.34417286]
[1763996047334,0.1965,2819.8,2819.2,0.34417286]
[1763996047510,0.1965,2819.8,2819.2,0.09817286]
[1763996047849,0.4779,2819.7,2818.8,0.246]
[1763996048044,0.4779,2819.7,2818.0,2.171946]
[1763996048045,0.1965,2818.9,2818.0,2.171946]
[1763996048250,0.5979,2819.7,2818.8,0.09817286]
[1763996048543,0.4779,2819.6,2818.7,0.09817286]
[1763996048843,0.4779,2819.6,2819.0,0.09817286]
[1763996049214,0.4779,2819.6,2818.9,0.09817286]
[1763996049415,0.12,2819.7,2819.2,0.09817286]
[1763996049616,0.3165,2819.8,2819.2,0.09817286]
[1763996049816,0.7944,2819.8,2819.2,0.09817286]
[1763996050034,0.7944,2819.8,2818.8,0.246]
[1763996050236,0.7944,2819.8,2819.3,0.09817286]
[1763996050760,0.4779,2819.7,2819.3,0.09817286]
[1763996051057,0.4779,2819.7,2818.4,3.040564]
[1763996051258,0.12,2819.6,2818.4,0.5500564]
[1763996051560,0.12,2819.6,2818.4,0.3040564]
[1763996051561,0.4779,2819.5,2818.4,0.3040564]
[1763996051757,0.4779,2819.5,2818.7,0.09817286]
[1763996052259,0.4779,2819.5,2818.5,0.246]
[1763996052459,0.12,2819.6,2818.9,0.09817286]
[1763996052661,0.12,2819.6,2818.5,0.246]
[1763996052662,0.4779,2819.6,2818.5,0.7137]
[1763996052817,0.4779,2819.6,2818.6,0.09817286]
[1763996053016,0.4779,2819.6,2818.5,0.34417286]
[1763996053264,0.4779,2819.6,2817.9,0.1992]
[1763996053465,0.12,2819.5,2818.3,0.09817286]
[1763996053622,0.12,2819.5,2818.4,0.09817286]
[1763996053822,0.4779,2819.4,2818.0,0.34417286]
[1763996054023,0.4779,2819.4,2817.9,0.09817286]
[1763996054258,0.4779,2819.4,2817.4,0.09817286]
[1763996054259,0.525504,2819.3,2817.4,0.09817286]
[1763996054582,0.525504,2819.3,2816.1,0.001]
[1763996054583,0.131,2817.5,2816.1,0.001]
[1763996054721,0.12,2817.4,2816.7,0.09817286]
[1763996054925,0.4779,2817.3,2816.5,0.09817286]
[1763996055423,0.1965,2816.7,2816.1,0.001]
[1763996055766,0.6744,2816.7,2816.1,0.001]
[1763996055968,0.12,2816.6,2816.1,0.001]
[1763996056169,0.5979,2816.6,2816.1,0.001]
[1763996056527,0.4779,2816.5,2816.1,0.001]
[1763996057078,0.405504,2816.4,2816.1,0.001]
[1763996057468,0.5979,2816.3,2814.9,0.001]
[1763996057643,0.405504,2816.2,2814.9,0.001]
[1763996057841,0.4779,2816.2,2814.9,0.001]
[1763996058041,0.12,2816.1,2815.0,0.09817286]
[1763996058248,0.4779,2816.0,2815.0,0.09817286]
[1763996058449,0.4779,2816.0,2815.3,0.09817286]
[1763996058650,0.1965,2815.9,2815.3,0.09817286]
[1763996058818,0.12,2816.2,2815.0,0.72559411]
[1763996058819,0.12,2816.2,2815.1,0.405504]
[1763996059024,0.5979,2816.2,2815.3,0.09817286]
[1763996059277,0.12,2816.2,2815.6,0.09817286]
[1763996059438,0.12,2816.6,2815.9,0.09817286]
[1763996059637,0.12,2816.6,2816.1,0.09817286]
[1763996059965,0.12,2816.6,2815.0,0.1992]
[1763996059966,0.4919,2816.5,2815.4,0.09817286]
[1763996060169,0.4919,2816.5,2815.7,0.09817286]
[1763996060326,0.4919,2816.5,2815.5,0.09817286]
[1763996060526,0.4919,2816.5,2815.3,0.72559411]
[1763996060752,0.4919,2816.5,2815.5,0.09817286]
[1763996060965,0.4919,2816.5,2815.6,0.0355164]
[1763996061173,0.4919,2816.5,2815.4,0.405504]
[1763996061410,0.12,2816.6,2816.1,0.09817286]
[1763996061702,0.4919,2816.5,2815.2,3.79812643]
[1763996062000,0.4919,2816.5,2814.8,1.20199411]
[1763996062001,0.12,2816.4,2815.3,0.73503693]
[1763996062205,0.405504,2816.3,2814.8,0.09817286]
[1763996062366,0.897404,2816.3,2814.4,3.79904222]
[1763996062565,0.897404,2816.3,2815.0,0.09817286]
[1763996062802,0.405504,2816.1,2815.0,0.09817286]
[1763996063005,0.12,2816.0,2815.0,0.09817286]
[1763996063177,0.405504,2815.9,2814.3,0.001]
[1763996063363,0.405504,2815.7,2814.3,0.001]
[1763996063700,0.12,2815.8,2814.3,0.001]
[1763996063701,0.6119,2815.8,2814.3,0.001]
[1763996063904,0.405504,2815.6,2814.3,0.001]
[1763996064075,0.4919,2815.7,2814.3,0.001]
[1763996064278,0.405504,2815.5,2814.3,0.001]
[1763996064481,0.12,2815.4,2814.3,0.001]
[1763996064674,0.6119,2815.4,2814.3,0.001]
[1763996065209,0.405504,2815.3,2814.3,0.001]
[1763996065369,0.12,2815.2,2814.3,0.001]
[1763996065911,0.6119,2815.2,2814.3,0.001]
[1763996066406,0.405504,2815.1,2814.3,0.001]
[1763996067017,0.4919,2815.0,2814.3,0.001]
[1763996067303,0.405504,2814.6,2812.3,0.01241123]
[1763996067520,0.1967,2813.6,2812.1,0.001]
[1763996067809,0.6119,2813.5,2812.6,0.03655429]
[1763996068011,0.6119,2813.5,2812.6,0.001]
[1763996068172,0.405504,2813.4,2812.6,0.001]
[1763996068366,0.4919,2813.3,2812.6,0.001]
[1763996069024,0.246,2813.2,2812.6,0.001]
[1763996069335,0.12,2813.1,2812.6,0.001]
[1763996069524,0.366,2813.1,2812.6,0.001]
[1763996069696,0.7379,2813.0,2812.6,0.001]
[1763996069891,0.12,2812.9,2812.6,0.001]
[1763996070232,0.6119,2812.9,2812.6,0.001]
[1763996070587,0.405504,2812.8,2812.6,0.001]
[1763996070911,0.8579,2812.9,2812.6,0.001]
[1763996071114,0.4919,2812.8,2812.6,0.001]
[1763996071299,0.12,2812.7,2812.6,0.001]
[1763996071702,0.405504,2812.6,2812.1,0.001]
[1763996071928,0.405504,2812.4,2810.6,3.13314386]
[1763996072226,0.366,2812.3,2810.9,0.09817286]
[1763996072431,0.12,2812.3,2811.3,0.405504]
[1763996072646,0.2504,2812.5,2811.6,0.09817286]
[1763996073139,0.2504,2812.5,2811.7,0.1847]
[1763996073303,0.12,2812.5,2811.7,0.1847]
[1763996073492,0.12,2812.8,2811.7,0.6611]
[1763996073918,0.12,2812.8,2811.7,0.1847]
[1763996074224,0.12,2812.8,2812.0,0.09817286]
[1763996074426,0.12,2812.9,2812.0,0.09817286]
[1763996074614,0.12,2812.9,2811.9,1.20199411]
[1763996074815,0.12,2812.9,2812.0,0.83148755]
[1763996075038,0.12,2812.9,2811.9,0.57457286]
[1763996075261,0.12,2812.9,2811.3,0.4774]
[1763996075262,0.4919,2812.8,2811.3,0.4774]
[1763996075426,0.12,2812.7,2811.6,0.09817286]
[1763996075616,0.12,2812.7,2811.5,0.09817286]
[1763996075816,0.12,2812.7,2811.4,0.72559411]
[1763996076019,0.12,2812.7,2811.6,0.405504]
[1763996076512,0.1967,2812.6,2811.5,0.83171109]
[1763996076714,0.1967,2812.6,2811.4,0.09817286]
[1763996076920,1.263404,2812.5,2811.3,0.001]
[1763996077316,0.405504,2812.2,2811.3,0.001]
[1763996077517,0.366,2812.1,2811.3,0.001]
[1763996077721,0.12,2812.1,2811.3,0.001]
[1763996077955,0.4919,2812.0,2811.3,0.001]
[1763996078521,0.12,2812.1,2811.3,0.09917286]
[1763996078737,0.12,2812.3,2811.3,0.001]
[1763996079020,0.6119,2812.3,2811.3,0.001]
[1763996079221,0.12,2812.3,2811.4,0.4764]
[1763996079419,0.12,2812.3,2811.3,0.001]
[1763996079635,0.6119,2812.2,2811.3,0.001]
[1763996079963,0.405504,2812.1,2811.3,0.001]
[1763996080262,0.6119,2812.2,2811.3,0.001]
[1763996080558,1.143404,2812.1,2811.3,0.001]
[1763996080759,0.897404,2812.1,2811.3,0.001]
[1763996080964,0.405504,2811.9,2811.3,0.001]
[1763996081122,0.12,2811.9,2811.3,0.001]
[1763996081657,0.12,2811.9,2811.3,0.09917286]
[1763996082048,0.12,2812.2,2811.3,0.001]
[1763996082359,0.1967,2812.6,2811.3,0.001]
[1763996082360,0.12,2812.5,2811.4,0.4764]
[1763996082657,0.12,2812.5,2811.5,3.5568202]
[1763996082864,0.12,2812.5,2811.7,0.09817286]
[1763996083161,0.12,2812.5,2811.9,0.09817286]
[1763996083335,0.4919,2813.0,2812.0,0.09817286]
[1763996083336,0.12,2812.9,2812.0,0.09817286]
[1763996083531,0.12,2812.9,2811.9,0.09817286]
[1763996083771,0.6119,2812.9,2811.7,0.28287286]
[1763996083980,0.6119,2812.9,2811.7,0.09817286]
[1763996084258,0.6119,2812.9,2811.6,0.40332202]
[1763996084259,0.6119,2812.9,2811.4,0.09817286]
[1763996084471,0.6119,2812.9,2811.3,0.4774]
[1763996084472,0.405504,2812.8,2811.3,0.4774]
[1763996084625,0.405504,2812.8,2811.3,0.57557286]
[1763996084825,0.4919,2812.7,2811.5,0.09817286]